bitfinex/quotes_SOLUSD_20241223
["timestamp","ask_amount","ask_price","bid_price","bid_amount"]
[1734965491962,1.03199161,181.74,181.6,34.12378841]
[1734965492267,1.03199161,181.74,181.58,34.12378841]
[1734965492471,6.6216,181.71,181.58,34.12378841]
[1734965492779,1.03209704,181.7,181.58,34.12378841]
[1734965493150,1.03209704,181.7,181.56,34.12378841]
[1734965493343,1.03209704,181.7,181.57,0.12549]
[1734965493562,1.03209704,181.7,181.56,34.12378841]
[1734965493748,1.3761,181.67,181.54,34.12378841]
[1734965494047,1.03253733,181.66,181.52,34.12378841]
[1734965494248,1.03253733,181.66,181.53,0.12549]
[1734965494485,1.03253733,181.66,181.55,0.12549]
[1734965494648,1.3761,181.67,181.55,0.12549]
[1734965494849,1.3761,181.67,181.57,0.12549]
[1734965494850,1.0323547,181.66,181.57,0.12549]
[1734965495867,1.0323547,181.66,181.55,0.12549]
[1734965496075,1.3761,181.67,181.57,0.12549]
[1734965496766,1.03226642,181.66,181.57,0.12549]
[1734965497073,2.40841562,181.67,181.57,0.12549]
[1734965497689,1.3761,181.67,181.57,0.12549]
[1734965497852,1.0320941,181.7,181.59,0.12549]
[1734965498153,1.0320941,181.7,181.58,34.12378841]
[1734965498348,1.0320941,181.7,181.59,0.12549]
[1734965498572,1.03197308,181.69,181.59,0.12549]
[1734965499260,1.03197308,181.69,181.46,0.6753613]
[1734965499261,0.12549,181.65,181.46,0.6753613]
[1734965499575,20.0,181.6,181.46,0.6753613]
[1734965499783,1.3768,181.58,181.46,34.79914971]
[1734965500076,1.03274453,181.57,181.46,34.79914971]
[1734965500283,1.3768,181.58,181.49,0.12549]
[1734965500652,1.0327895,181.57,181.46,0.6753613]
[1734965500853,1.3769,181.56,181.46,0.6753613]
[1734965501072,1.03309922,181.55,181.46,0.6753613]
[1734965501265,2.9403,181.56,181.46,0.6753613]
[1734965501463,2.9403,181.56,181.46,34.79914971]
[1734965501956,1.03285273,181.55,181.46,34.79914971]
[1734965502159,2.9403,181.56,181.46,34.79914971]
[1734965502381,1.3769,181.56,181.47,0.12549]
[1734965502556,1.0327236,181.59,181.5,34.12378841]
[1734965502886,1.0327236,181.59,181.48,34.12378841]
[1734965503067,1.0327236,181.59,181.46,34.79914971]
[1734965503569,1.0327236,181.59,181.46,0.6753613]
[1734965504086,20.0,181.58,181.46,0.6753613]
[1734965504255,1.03288391,181.57,181.47,0.12549]
[1734965504471,1.03279309,181.59,181.47,0.12549]
[1734965504692,1.3768,181.58,181.47,0.12549]
[1734965504873,1.03290012,181.57,181.47,0.12549]
[1734965505182,1.03290012,181.57,181.46,0.6753613]
[1734965505675,1.3769,181.56,181.46,0.6753613]
[1734965505869,1.03295476,181.55,181.46,0.6753613]
[1734965506175,1.3769,181.56,181.46,0.6753613]
[1734965506372,1.3769,181.56,181.47,0.12549]
[1734965506574,2.40964618,181.59,181.47,0.12549]
[1734965507090,2.40964618,181.59,181.46,0.6753613]
[1734965507298,5.16304618,181.59,181.46,0.6753613]
[1734965508138,20.0,181.55,181.46,0.6753613]
[1734965508260,1.0330975,181.54,181.46,0.6753613]
[1734965508663,6.4331,181.58,181.46,0.6753613]
[1734965508664,1.03313152,181.57,181.46,0.6753613]
[1734965508865,1.02937105,181.56,181.47,0.12549]
[1734965509372,1.02937105,181.56,181.46,0.6753613]
[1734965509785,1.377,181.55,181.46,0.6753613]
[1734965510085,1.377,181.55,181.47,0.12549]
[1734965510276,1.03286942,181.54,181.46,0.6753613]
[1734965510474,1.3769,181.56,181.46,0.6753613]
[1734965510670,1.03298849,181.55,181.46,0.6753613]
[1734965511203,10.21968849,181.55,181.46,0.6753613]
[1734965511377,1.3769,181.56,181.47,34.24927841]
[1734965511776,1.03275499,181.57,181.47,0.12549]
[1734965512885,1.03275499,181.57,181.47,21.14246041]
[1734965513205,6.4331,181.58,181.47,21.14246041]
[1734965513409,6.4331,181.58,181.49,21.01697041]
[1734965513587,16.652788,181.6,181.52,21.01697041]
[1734965513778,6.5369,181.64,181.54,21.14246041]
[1734965514515,7.9132,181.64,181.48,15.368]
[1734965514711,1.03234614,181.63,181.49,21.01697041]
[1734965515010,1.03234614,181.63,181.47,21.01697041]
[1734965515506,1.3765,181.62,181.49,21.14246041]
[1734965515684,1.03258891,181.61,181.49,21.14246041]
[1734965516008,1.03259843,181.63,181.51,21.14246041]
[1734965518010,5.16179843,181.63,181.48,21.01697041]
[1734965518384,5.16179843,181.63,181.49,0.12549]
[1734965518617,2.40899843,181.63,181.51,0.12549]
[1734965519511,2.40899843,181.63,181.49,21.01697041]
[1734965519729,2.40899843,181.63,181.49,21.14246041]
[1734965520010,2.40899843,181.63,181.51,0.12549]
[1734965520418,2.40899843,181.63,181.5,0.12549]
[1734965520717,2.40899843,181.63,181.5,21.14246041]
[1734965520918,2.40899843,181.63,181.52,0.12549]
[1734965521218,7.56951282,181.64,181.54,0.12549]
[1734965521384,8.94581282,181.64,181.48,21.01697041]
[1734965522114,8.94581282,181.64,181.5,0.12549]
[1734965522281,8.94581282,181.64,181.54,0.12549]
[1734965522484,6.5369,181.64,181.56,0.12549]
[1734965522686,6.1484,181.7,181.62,0.12549]
[1734965522885,6.1484,181.7,181.64,0.12549]
[1734965523302,6.1484,181.7,181.57,2.76008878]
[1734965523485,6.1484,181.7,181.59,21.01697041]
[1734965523681,6.1484,181.7,181.63,0.12549]
[1734965523892,6.1484,181.7,181.62,0.12549]
[1734965524287,6.1484,181.7,181.63,21.14246041]
[1734965524489,6.6578,181.76,181.7,0.12549]
[1734965524698,3.75300422,181.88,181.62,21.01697041]
[1734965524699,6.6578,181.86,181.73,0.12549]
[1734965524904,6.1484,181.82,181.74,21.01697041]
[1734965525103,1.03142047,181.85,181.75,21.01697041]
[1734965525309,6.6578,181.86,181.78,0.12549]
[1734965525627,6.4737,181.93,181.84,0.12549]
[1734965525793,1.374,181.95,181.86,21.01697041]
[1734965525993,1.03067753,181.98,181.88,21.01697041]
[1734965526191,12.9213755,182.07,181.92,21.01697041]
[1734965526494,1.03037533,182.06,181.95,21.01697041]
[1734965526815,1.03037533,182.06,181.99,21.01697041]
[1734965527045,1.70538291,182.09,182.0,21.01697041]
[1734965527244,0.6753613,182.09,182.03,21.01697041]
[1734965527447,0.6753613,182.09,182.05,21.01697041]
[1734965527747,0.6753613,182.09,182.07,21.01697041]
[1734965527912,2.40179836,182.21,182.1,20.0]
[1734965528108,2.40179836,182.21,182.16,33.89227646]
[1734965528109,1.02969836,182.21,182.16,33.89227646]
[1734965528311,1.3717,182.26,182.18,33.89227646]
[1734965528312,1.02935367,182.25,182.18,33.89227646]
[1734965528511,1.02935367,182.25,182.19,33.89227646]
[1734965529118,1.02894628,182.3,182.2,33.89227646]
[1734965529319,1.02898098,182.26,182.17,33.89227646]
[1734965529535,1.02898098,182.26,182.15,33.89227646]
[1734965529747,1.02898098,182.26,182.11,33.89227646]
[1734965529914,1.02898098,182.26,182.1,33.89227646]
[1734965530112,1.02898098,182.26,182.05,33.89227646]
[1734965530336,1.02898098,182.26,182.04,33.89227646]
[1734965530542,20.0,182.24,182.01,33.89227646]
[1734965530734,20.0,182.18,181.97,33.89227646]
[1734965530943,1.02974164,182.17,181.96,33.89227646]
[1734965531239,20.0,182.13,181.95,33.89227646]
[1734965531542,1.03018937,182.12,181.98,0.12549]
[1734965531840,1.03018937,182.12,182.01,33.89227646]
[1734965532047,1.03018937,182.12,182.03,33.89227646]
[1734965532210,1.02974794,182.15,181.96,33.89227646]
[1734965532648,0.12549,182.14,181.94,33.89227646]
[1734965532849,21.03018725,182.13,181.95,33.89227646]
[1734965533046,1.3727,182.12,181.99,33.89227646]
[1734965533352,1.02982481,182.11,181.99,33.89227646]
[1734965533527,1.02994422,182.12,182.02,33.89227646]
[1734965533723,1.02969727,182.15,182.03,0.12549]
[1734965534052,1.3725,182.14,182.02,33.89227646]
[1734965534215,1.0297138,182.13,182.02,33.89227646]
[1734965535220,22.40193378,182.18,182.03,0.12549]
[1734965535420,2.40193378,182.18,182.05,0.12549]
[1734965535658,2.40193378,182.18,182.06,33.89227646]
[1734965536157,2.40193378,182.18,182.03,33.89227646]
[1734965536358,2.40193378,182.18,182.04,53.89227646]
[1734965536649,1.02939296,182.17,182.08,33.89227646]
[1734965536851,2.40149974,182.2,182.02,33.89227646]
[1734965537234,2.40149974,182.2,182.07,0.12549]
[1734965537435,2.40149974,182.2,182.04,33.89227646]
[1734965537633,5.14569974,182.2,182.0,33.89227646]
[1734965537832,5.14569974,182.2,182.02,33.89227646]
[1734965538045,5.14569974,182.2,182.06,33.89227646]
[1734965538222,2.40149974,182.2,182.09,0.12549]
[1734965538422,1.0292345,182.19,182.1,33.89227646]
[1734965538623,1.02928438,182.2,182.1,33.89227646]
[1734965538849,1.02928438,182.2,182.06,33.89227646]
[1734965539058,20.0,182.18,182.0,33.89227646]
[1734965539355,1.02983099,182.17,181.98,33.89227646]
[1734965539925,1.02983099,182.17,182.03,0.12549]
[1734965540448,21.3724,182.16,181.98,33.89227646]
[1734965540643,1.0299215,182.15,181.96,33.89227646]
[1734965541159,1.0299215,182.15,181.91,13.743]
[1734965541160,1.0299215,182.15,182.02,33.89227646]
[1734965541340,1.3724,182.16,182.07,0.12549]
[1734965541542,1.02944588,182.15,182.07,0.12549]
[1734965541733,1.02944588,182.15,182.02,33.89227646]
[1734965542145,1.02944588,182.15,182.03,0.12549]
[1734965542452,1.3724,182.16,182.05,0.12549]
[1734965542765,1.02946526,182.15,182.05,0.12549]
[1734965543174,1.02946526,182.15,182.03,0.12549]
[1734965543371,1.02946526,182.15,181.94,33.89227646]
[1734965543543,1.5879,182.14,181.96,33.89227646]
[1734965543865,1.02981788,182.13,181.99,0.12549]
[1734965544242,1.02981788,182.13,181.98,33.89227646]
[1734965544243,1.02981788,182.13,182.01,0.12549]
[1734965544439,1.02981788,182.13,182.0,33.89227646]
[1734965544634,1.3727,182.12,182.0,33.89227646]
[1734965544867,1.02985551,182.11,181.98,33.89227646]
[1734965545238,1.02985551,182.11,181.99,0.12549]
[1734965545542,1.3727,182.12,182.01,0.12549]
[1734965545757,1.02983412,182.11,181.98,33.89227646]
[1734965546069,1.02983412,182.11,181.99,0.12549]
[1734965546250,1.02983412,182.11,182.0,33.89227646]
[1734965546566,1.02983412,182.11,181.98,33.89227646]
[1734965546770,1.3728,182.1,181.96,33.89227646]
[1734965546951,1.02986066,182.09,181.98,33.89227646]
[1734965547151,1.3728,182.1,181.99,34.01776646]
[1734965547566,1.3728,182.1,181.95,33.89227646]
[1734965547871,1.02984175,182.09,181.96,33.89227646]
[1734965548249,6.2694,182.08,181.93,33.89227646]
[1734965548448,20.0,182.05,181.9,33.89227646]
[1734965548655,1.3733,182.03,181.89,33.89227646]
[1734965548961,1.03049916,182.02,181.87,33.89227646]
[1734965549340,1.03049916,182.02,181.85,33.89227646]
[1734965549567,1.5879,182.01,181.83,33.89227646]
[1734965549748,1.03067225,182.0,181.81,33.89227646]
[1734965549953,21.03067225,182.0,181.83,33.89227646]
[1734965550337,21.03067225,182.0,181.8,33.89227646]
[1734965550338,21.03067225,182.0,181.85,33.89227646]
[1734965550542,21.03067225,182.0,181.87,33.89227646]
[1734965550795,1.3737,181.99,181.87,33.89227646]
[1734965550982,1.03054461,181.98,181.87,33.89227646]
[1734965551269,21.03054461,181.98,181.83,33.89227646]
[1734965551646,6.5463,181.97,181.82,0.12549]
[1734965551871,1.0308208,181.96,181.81,33.89227646]
[1734965552066,20.0,181.94,181.79,33.89227646]
[1734965552268,1.03106608,181.93,181.77,33.89227646]
[1734965552771,1.3742,181.92,181.73,33.89227646]
[1734965552951,1.03133581,181.91,181.73,33.89227646]
[1734965553154,1.03133581,181.91,181.74,0.12549]
[1734965553649,1.03133581,181.91,181.73,33.89227646]
[1734965553855,20.0,181.89,181.75,33.89227646]
[1734965554055,1.03114312,181.88,181.76,33.89227646]
[1734965554270,1.03114312,181.88,181.74,33.89227646]
[1734965555479,1.3746,181.87,181.74,33.89227646]
[1734965555677,1.03131675,181.86,181.74,33.89227646]
[1734965556684,1.03130393,181.85,181.74,33.89227646]
[1734965556975,20.0,181.89,181.74,33.89227646]
[1734965557154,1.03129011,181.88,181.74,33.89227646]
[1734965557752,1.3746,181.87,181.74,33.89227646]
[1734965557954,1.03128726,181.86,181.74,33.89227646]
[1734965559187,6.5228,181.85,181.74,33.89227646]
[1734965559488,6.5228,181.85,181.75,0.12549]
[1734965559686,7.6441,181.91,181.79,0.12549]
[1734965559871,1.03092155,181.9,181.79,0.12549]
[1734965560588,6.2698,181.91,181.81,0.12549]
[1734965561176,2.9619,181.95,181.85,0.12549]
[1734965561968,9.571,181.95,181.85,0.12549]
[1734965562291,1.03064073,181.94,181.84,33.89227646]
[1734965563288,6.6091,181.95,181.87,0.12549]
[1734965563489,1.03049916,181.97,181.88,33.89227646]
[1734965563689,9.01329916,181.97,181.86,33.89227646]
[1734965564001,9.01329916,181.97,181.78,33.89227646]
[1734965564164,9.01329916,181.97,181.79,0.12549]
[1734965564792,20.0,181.94,181.79,0.12549]
[1734965564986,1.3742,181.92,181.79,0.12549]
[1734965565189,1.03096136,181.91,181.79,0.12549]
[1734965565382,1.03096136,181.91,181.8,33.89227646]
[1734965565567,1.03096136,181.91,181.81,0.12549]
[1734965565773,20.0,181.94,181.84,33.89227646]
[1734965565972,2.40485788,181.96,181.84,33.89227646]
[1734965565973,2.40485788,181.96,181.85,0.12549]
[1734965566175,2.40485788,181.96,181.84,33.89227646]
[1734965566574,2.40485788,181.96,181.85,0.12549]
[1734965568219,2.40485788,181.96,181.86,33.89227646]
[1734965568402,6.1677,182.05,181.95,33.89227646]
[1734965568702,14.1505,182.05,181.95,33.89227646]
[1734965568871,6.1677,182.05,181.95,33.89227646]
[1734965569071,6.1677,182.05,181.98,0.12549]
[1734965570103,6.1677,182.05,181.87,27.4921]
[1734965570104,1.02999221,182.04,181.93,33.89227646]
[1734965570488,1.02999221,182.04,181.96,0.12549]
[1734965571902,6.1677,182.05,181.98,0.12549]
[1734965572502,6.1677,182.05,181.96,0.12549]
[1734965572806,1.03008469,182.04,181.96,0.12549]
[1734965573008,6.1677,182.05,181.96,0.12549]
[1734965573303,6.1677,182.05,181.98,0.12549]
[1734965574004,14.1505,182.08,182.02,0.12549]
[1734965574215,14.1505,182.08,181.89,50.44227646]
[1734965574216,1.02978673,182.07,181.9,13.7438]
[1734965574376,1.02978673,182.07,181.93,33.89227646]
[1734965575404,21.3733,182.05,181.95,33.89227646]
[1734965575606,1.03022154,182.04,181.95,33.89227646]
[1734965575985,1.03022154,182.04,181.94,0.12549]
[1734965576500,1.3733,182.03,181.94,0.12549]
[1734965576687,1.03028664,182.02,181.93,33.89227646]
[1734965576881,1.03028664,182.02,181.94,0.12549]
[1734965577093,2.40350705,182.03,181.94,0.12549]
[1734965577611,20.0,182.05,181.96,0.12549]
[1734965577904,2.40315282,182.06,181.98,0.12549]
[1734965578075,1.02998184,182.07,181.98,0.12549]
[1734965578282,1.02998184,182.07,181.97,33.89227646]
[1734965579112,1.02998184,182.07,181.96,0.12549]
[1734965579614,2.7463,182.06,181.96,0.12549]
[1734965579820,1.03012068,182.05,181.97,33.89227646]
[1734965580383,1.03012068,182.05,181.98,0.12549]
[1734965580585,14.1505,182.08,182.02,0.12549]
[1734965580896,1.02981005,182.08,182.02,0.12549]
[1734965581103,1.02981005,182.08,182.01,33.89227646]
[1734965581601,1.02981005,182.08,181.97,33.89227646]
[1734965581800,1.02981005,182.08,181.99,33.89227646]
[1734965582600,16.8962,182.1,182.03,33.89227646]
[1734965582907,6.2155,182.11,182.05,33.89227646]
[1734965583110,1.02972342,182.1,182.03,33.89227646]
[1734965583300,1.02972342,182.1,181.99,33.89227646]
[1734965583491,3.77542342,182.1,181.97,33.89227646]
[1734965584219,3.77542342,182.1,181.99,20.89131259]
[1734965584417,3.77542342,182.1,181.98,0.12549]
[1734965584812,20.0,182.08,182.01,20.89131259]
[1734965585017,3.77542342,182.1,182.02,0.12549]
[1734965585691,3.77542342,182.1,182.01,20.89131259]
[1734965586315,3.77542342,182.1,182.02,0.12549]
[1734965586524,2.7457,182.1,182.04,0.12549]
[1734965586820,16.8962,182.12,182.04,0.12549]
[1734965586993,6.0091,182.16,182.08,0.12549]
[1734965587188,6.0091,182.16,182.1,0.12549]
[1734965588024,6.0091,182.16,182.07,20.89131259]
[1734965588325,3.77424896,182.15,182.03,20.89131259]
[1734965588904,3.77424896,182.15,182.04,0.12549]
[1734965589329,20.0,182.13,182.04,0.12549]
[1734965589538,1.02977246,182.12,182.04,0.12549]
[1734965589697,20.0,182.13,182.04,0.12549]
[1734965589893,1.02960473,182.12,182.04,0.12549]
[1734965590098,2.7449,182.15,182.05,20.89131259]
[1734965590322,3.77439998,182.15,182.07,0.12549]
[1734965590506,3.77434119,182.15,182.07,0.12549]
[1734965590741,2.7449,182.15,182.07,0.12549]
[1734965590924,3.77433608,182.15,182.07,0.12549]
[1734965591229,3.77433608,182.15,182.02,20.89131259]
[1734965591427,2.7449,182.15,182.07,0.12549]
[1734965591727,6.0091,182.19,182.13,0.12549]
[1734965591931,6.0091,182.19,182.15,0.12549]
[1734965592136,2.7439,182.22,182.15,0.12549]
[1734965592324,9.0277,182.26,182.17,0.12549]
[1734965592846,9.0277,182.26,182.19,0.12549]
[1734965593013,9.0277,182.26,182.16,20.89131259]
[1734965593194,9.0277,182.26,182.17,0.12549]
[1734965593398,6.2843,182.26,182.19,0.12549]
[1734965593632,0.6753613,182.27,182.19,0.12549]
[1734965593834,0.6753613,182.27,182.21,0.12549]
[1734965594002,0.6753613,182.27,182.13,20.89131259]
[1734965594003,4.44738597,182.27,182.13,20.89131259]
[1734965594547,4.44738597,182.27,182.11,20.89131259]
[1734965595235,20.0,182.25,182.12,0.12549]
[1734965595401,2.7437,182.23,182.11,20.89131259]
[1734965595602,1.02931323,182.22,182.09,20.89131259]
[1734965595827,1.02931323,182.22,182.11,20.89131259]
[1734965596021,1.02931323,182.22,182.12,0.12549]
[1734965596323,1.02915517,182.26,182.16,0.12549]
[1734965596731,1.02915517,182.26,182.14,20.89131259]
[1734965597033,20.0,182.24,182.1,20.89131259]
[1734965597333,1.02926932,182.23,182.13,21.01680259]
[1734965597541,1.02906674,182.24,182.15,0.12549]
[1734965597715,3.77238193,182.25,182.15,0.12549]
[1734965597920,2.7434,182.25,182.19,0.12549]
[1734965598108,0.6753613,182.27,182.19,0.12549]
[1734965598301,0.6753613,182.27,182.21,0.12549]
[1734965599031,1.02875065,182.26,182.13,20.89131259]
[1734965599235,1.02875065,182.26,182.16,0.12549]
[1734965599440,23.4186613,182.27,182.18,0.12549]
[1734965599906,1.02880145,182.26,182.18,0.12549]
[1734965600324,20.0,182.25,182.11,0.49526011]
[1734965600530,1.0289762,182.24,182.16,0.12549]
[1734965600737,20.0,182.25,182.16,0.12549]
[1734965601231,1.02896527,182.24,182.16,0.12549]
[1734965601445,3.77256527,182.24,182.13,20.89131259]
[1734965601625,3.77256527,182.24,182.11,20.89131259]
[1734965601944,3.77256527,182.24,182.09,41.01680259]
[1734965602149,3.77256527,182.24,182.09,21.01680259]
[1734965602336,3.77256527,182.24,182.11,0.12549]
[1734965602845,9.25976527,182.24,182.09,20.89131259]
[1734965603046,20.0,182.2,182.07,20.89131259]
[1734965603349,20.0,182.2,182.06,20.89131259]
[1734965603350,1.02938829,182.19,182.06,20.89131259]
[1734965603845,1.02938829,182.19,182.07,0.12549]
[1734965604147,6.0442,182.23,182.14,0.12549]
[1734965604324,6.0442,182.23,182.16,0.12549]
[1734965604525,2.2628613,182.27,182.18,0.12549]
[1734965604845,1.02886461,182.26,182.18,0.12549]
[1734965605145,3.4185613,182.27,182.18,0.12549]
[1734965605456,4.44734589,182.27,182.18,0.12549]
[1734965606248,9.9336154,182.27,182.11,0.495233]
[1734965606450,9.9336154,182.27,182.14,20.89131259]
[1734965607414,9.9336154,182.27,182.15,0.12549]
[1734965609658,20.0,182.24,182.15,0.12549]
[1734965609860,1.02910116,182.23,182.13,0.12549]
[1734965611470,1.0290606,182.23,182.13,0.12549]
[1734965611932,1.0290606,182.23,182.1,20.89131259]
[1734965612134,1.0290606,182.23,182.11,0.12549]
[1734965612339,1.0290606,182.23,182.1,20.89131259]
[1734965613141,2.7439,182.22,182.1,20.89131259]
[1734965613324,1.02921159,182.21,182.11,0.12549]
[1734965613654,2.7439,182.22,182.13,0.12549]
[1734965613857,1.02906139,182.21,182.05,0.49562022]
[1734965614021,20.0,182.15,182.04,23.43377674]
[1734965614221,1.02960337,182.14,182.02,20.89131259]
[1734965614425,1.02960337,182.14,182.0,20.89131259]
[1734965614848,1.02960337,182.14,182.01,0.12549]
[1734965615249,2.7452,182.13,182.01,0.12549]
[1734965615438,1.02981107,182.12,182.01,0.12549]
[1734965615758,20.0,182.08,181.94,20.89131259]
[1734965615926,1.03013425,182.07,181.94,20.89131259]
[1734965616344,1.03013425,182.07,181.92,20.89131259]
[1734965616554,1.03013425,182.07,181.86,1.5924]
[1734965616742,1.03013425,182.07,181.97,20.89131259]
[1734965616947,20.0,182.08,181.97,20.89131259]
[1734965617148,20.0,182.08,181.98,0.12549]
[1734965617336,20.0,182.08,182.0,0.12549]
[1734965617667,3.77561847,182.1,182.0,0.12549]
[1734965618447,1.02991847,182.1,182.0,0.12549]
[1734965619767,7.7898,182.11,182.02,0.12549]
[1734965620668,1.02971544,182.1,182.02,0.12549]
[1734965620859,1.02971544,182.1,181.99,20.89131259]
[1734965621056,20.0,182.08,181.97,20.89131259]
[1734965621264,1.03010971,182.07,181.95,20.89131259]
[1734965621772,1.03010971,182.07,181.96,0.12549]
[1734965622136,1.03010971,182.07,181.98,0.12549]
[1734965622338,2.7457,182.1,182.0,0.12549]
[1734965622645,20.0,182.08,182.0,0.12549]
[1734965623454,1.0299086,182.07,181.97,20.89131259]
[1734965624362,1.0299086,182.07,181.91,2.57711223]
[1734965624363,1.0299086,182.07,181.95,20.89131259]
[1734965624852,21.02998142,182.08,181.97,20.89131259]
[1734965625247,21.02998142,182.08,181.95,20.89131259]
[1734965626271,2.7461,182.07,181.93,20.89131259]
[1734965626472,1.03026999,182.06,181.91,20.89131259]
[1734965626670,1.03026999,182.06,181.87,0.49803741]
[1734965626671,1.03026999,182.06,181.89,20.89131259]
[1734965626976,1.03026999,182.06,181.9,0.12549]
[1734965627271,20.0,182.02,181.89,20.89131259]
[1734965627473,1.03035537,182.01,181.89,20.89131259]
[1734965627643,1.03032396,182.04,181.92,0.12549]
[1734965627969,1.03015834,182.04,181.97,0.12549]
[1734965628308,20.0,182.02,181.92,20.89131259]
[1734965628462,3.77703552,182.04,181.94,20.89131259]
[1734965628647,6.6344,182.05,181.96,20.89131259]
[1734965628974,6.6344,182.05,181.97,0.12549]
[1734965630374,6.6344,182.1,182.03,0.12549]
[1734965631770,1.02979864,182.09,182.03,0.12549]
[1734965631947,6.6344,182.1,182.03,0.12549]
[1734965632352,1.02979415,182.09,182.03,0.12549]
[1734965632553,6.6344,182.1,182.03,0.12549]
[1734965634168,6.6344,182.1,182.04,20.89131259]
[1734965634482,6.6344,182.1,182.05,0.12549]
[1734965634665,20.0,182.07,181.99,0.49706444]
[1734965634851,6.6344,182.1,181.87,29.0284]
[1734965634852,1.03014043,182.06,181.96,20.89131259]
[1734965635053,6.6344,182.1,181.96,20.89131259]
[1734965635054,1.03000743,182.09,181.96,20.89131259]
[1734965635561,1.03000743,182.09,181.94,20.89131259]
[1734965635562,20.0,182.07,181.94,20.89131259]
[1734965635760,1.5879,182.05,181.91,20.89131259]
[1734965635969,1.03030981,182.04,181.94,0.12549]
[1734965636182,1.03030981,182.04,181.96,0.12549]
[1734965636578,1.03030981,182.04,181.95,20.89131259]
[1734965636879,1.03030981,182.04,181.93,20.89131259]
[1734965638986,1.03030981,182.04,181.94,0.12549]
[1734965639487,1.03030981,182.04,181.93,20.89131259]
[1734965639488,2.61817162,182.05,181.98,0.12549]
[1734965640084,9.3802,182.1,181.98,0.12549]
[1734965640085,1.0300825,182.09,181.98,0.12549]
[1734965640693,1.0300825,182.09,181.94,20.0]
[1734965640876,2.746,182.08,181.95,20.89131259]
[1734965641080,1.03009991,182.07,181.95,20.89131259]
[1734965641286,21.03009991,182.07,181.95,20.89131259]
[1734965641595,1.03009991,182.07,181.95,20.89131259]
[1734965641892,1.03009991,182.07,181.96,0.12549]
[1734965642097,1.03009991,182.07,181.98,0.12549]
[1734965642399,21.03009991,182.07,181.99,20.89131259]
[1734965642582,21.03009991,182.07,181.97,20.89131259]
[1734965642772,2.7463,182.06,181.93,20.89131259]
[1734965642972,1.03035259,182.05,181.93,20.89131259]
[1734965643173,1.03035259,182.05,181.96,0.12549]
[1734965643392,1.03035259,182.05,181.95,20.89131259]
[1734965644285,2.7466,182.04,181.93,20.89131259]
[1734965644494,1.03039882,182.03,181.93,20.89131259]
[1734965644691,1.03039882,182.03,181.95,20.89131259]
[1734965645668,1.03030284,182.02,181.91,20.89131259]
[1734965646266,1.03047203,182.04,181.93,20.89131259]
[1734965646483,1.03047203,182.04,181.94,0.12549]
[1734965646666,1.03047203,182.04,181.95,20.89131259]
[1734965647082,1.0302752,182.05,181.98,0.12549]
[1734965647269,1.03006917,182.08,181.98,0.12549]
[1734965647897,6.6344,182.1,182.05,20.89131259]
[1734965648066,2.61756185,182.17,182.07,20.89131259]
[1734965648268,6.494,182.16,182.08,0.12549]
[1734965648496,1.02953736,182.15,182.08,0.12549]
[1734965648694,6.494,182.16,182.11,0.12549]
[1734965649001,9.25760482,182.21,182.14,0.12549]
[1734965649595,8.2282358,182.21,182.17,21.01680259]
[1734965649774,1.02915764,182.24,182.17,0.12549]
[1734965650100,1.02915764,182.24,182.15,20.89131259]
[1734965650573,1.02915764,182.24,182.16,0.12549]
[1734965650904,1.0290424,182.26,182.16,21.01680259]
[1734965651096,1.0290424,182.26,182.18,0.12549]
[1734965651398,7.2516613,182.27,182.2,0.12549]
[1734965651603,7.2516613,182.27,182.2,21.01680259]
[1734965651777,7.2516613,182.27,182.19,20.89131259]
[1734965652099,0.6753613,182.27,182.21,0.12549]
[1734965652666,0.6753613,182.27,182.21,20.89131259]
[1734965652891,0.6753613,182.27,182.19,20.89131259]
[1734965653089,0.6753613,182.27,182.17,20.89131259]
[1734965653369,1.02882908,182.26,182.11,20.89131259]
[1734965653567,1.02882908,182.26,182.04,8.2321]
[1734965653568,7.9473,182.25,182.04,8.2321]
[1734965653792,1.02937493,182.24,182.13,21.01680259]
[1734965653996,1.02937493,182.24,182.14,20.89131259]
[1734965654214,1.02937493,182.24,182.13,20.89131259]
[1734965655273,1.02937493,182.24,182.16,21.01680259]
[1734965655493,1.02937493,182.24,182.16,0.12549]
[1734965656004,0.6753613,182.27,182.2,20.89131259]
[1734965656185,0.6753613,182.27,182.24,20.89131259]
[1734965656383,0.6753613,182.27,182.26,21.01680259]
[1734965656610,0.6753613,182.27,182.26,0.12549]
[1734965656909,0.6753613,182.27,182.26,21.01680259]